bitfinex-derivatives/quotes_BTCF0:USTF0_20241103
["timestamp","ask_amount","ask_price","bid_price","bid_amount"]
[1730672431213,0.011,69175.0,69174.0,0.24275217]
[1730672431605,0.011,69175.0,69174.0,0.1704068]
[1730672431910,0.011,69175.0,69174.0,0.065076]
[1730672434907,0.011,69175.0,69174.0,0.425876]
[1730672435115,0.011,69175.0,69174.0,0.48375146]
[1730672435319,0.011,69175.0,69174.0,0.425876]
[1730672436411,0.011,69175.0,69174.0,0.48371011]
[1730672438207,0.011,69175.0,69174.0,0.425876]
[1730672438408,0.011,69175.0,69174.0,0.12289291]
[1730672438613,0.011,69175.0,69174.0,0.84449291]
[1730672438818,0.011,69175.0,69174.0,0.12289291]
[1730672439015,0.16443731,69182.0,69180.0,0.065069]
[1730672439211,0.00216931,69182.0,69181.0,0.4428669]
[1730672439415,0.00216931,69182.0,69181.0,0.5079359]
[1730672439613,0.00216931,69182.0,69181.0,0.58020608]
[1730672440613,0.00216931,69182.0,69181.0,0.58120608]
[1730672441219,0.00216931,69182.0,69181.0,0.58320608]
[1730672441420,0.00216931,69182.0,69181.0,0.5109359]
[1730672441822,0.00216931,69182.0,69181.0,0.68781447]
[1730672442326,0.00216931,69182.0,69181.0,0.58320608]
[1730672443321,0.00216931,69182.0,69181.0,0.5109359]
[1730672445018,0.00216931,69182.0,69181.0,0.54556677]
[1730672453018,0.00216931,69182.0,69181.0,0.18476677]
[1730672453218,0.00216931,69182.0,69181.0,0.54556677]
[1730672455622,0.00216931,69182.0,69181.0,0.61783695]
[1730672456336,0.065063,69188.0,69181.0,0.55276795]
[1730672456631,0.065063,69188.0,69185.0,0.065065]
[1730672458628,0.069063,69188.0,69182.0,0.065068]
[1730672458926,0.069063,69188.0,69185.0,0.1471319]
[1730672459322,0.070063,69188.0,69185.0,0.1471319]
[1730672459829,0.067063,69188.0,69185.0,0.1471319]
[1730672460031,0.068063,69188.0,69185.0,0.1471319]
[1730672460432,0.067063,69188.0,69185.0,0.1471319]
[1730672460734,0.003,69188.0,69187.0,0.065063]
[1730672461734,0.003,69188.0,69187.0,0.1471299]
[1730672461929,0.003,69188.0,69187.0,0.065063]
[1730672463134,0.001,69188.0,69187.0,0.065063]
[1730672465936,0.065056,69195.0,69194.0,0.065057]
[1730672466236,0.065056,69195.0,69194.0,0.425857]
[1730672467040,0.070056,69195.0,69194.0,0.426857]
[1730672467638,0.005,69195.0,69194.0,0.426857]
[1730672468327,0.005,69195.0,69194.0,0.427857]
[1730672468526,0.011,69195.0,69194.0,0.427857]
[1730672469935,0.011,69195.0,69194.0,0.46284693]
[1730672476954,0.011,69195.0,69194.0,0.49424693]
[1730672478837,0.011,69195.0,69194.0,0.92780693]
[1730672479446,0.011,69195.0,69194.0,1.28860693]
[1730672479639,0.011,69195.0,69194.0,1.36087711]
[1730672480242,0.011,69195.0,69194.0,1.28860693]
[1730672480442,0.011,69195.0,69194.0,1.36087711]
[1730672481443,0.011,69195.0,69194.0,1.70228866]
[1730672482943,0.011,69195.0,69194.0,1.70128866]
[1730672482944,0.007,69195.0,69194.0,1.70128866]
[1730672483132,0.003,69195.0,69194.0,1.70028866]
[1730672483339,0.003,69195.0,69194.0,1.68853548]
[1730672483634,0.003,69195.0,69194.0,1.70028821]
[1730672484338,0.003,69195.0,69194.0,1.64036592]
[1730672484742,0.001,69195.0,69194.0,1.64036592]
[1730672484944,0.001,69195.0,69194.0,1.64236592]
[1730672485442,0.001,69195.0,69194.0,1.59911088]
[1730672485633,0.007,69195.0,69194.0,1.59811088]
[1730672486336,0.3916,69213.0,69194.0,1.60011088]
[1730672486648,0.3916,69213.0,69212.0,0.0820669]
[1730672486845,0.456639,69213.0,69209.0,0.1471089]
[1730672487143,0.456639,69213.0,69212.0,0.0820669]
[1730672487540,0.457639,69213.0,69212.0,0.0820669]
[1730672488131,0.458639,69213.0,69212.0,0.0820669]
[1730672489140,0.457639,69213.0,69212.0,0.0820669]
[1730672489448,0.456639,69213.0,69212.0,0.0860669]
[1730672489837,0.457639,69213.0,69212.0,0.0910669]
[1730672491048,0.457639,69213.0,69212.0,0.1561069]
[1730672494841,0.096839,69213.0,69212.0,0.1561069]
[1730672496039,0.096839,69213.0,69212.0,0.19936622]
[1730672497043,0.0318,69213.0,69212.0,0.19936622]
[1730672498048,0.0318,69213.0,69212.0,0.1561069]
[1730672500151,0.0318,69213.0,69212.0,0.5169069]
[1730672504056,0.0318,69213.0,69212.0,0.57458029]
[1730672506054,0.0318,69213.0,69212.0,0.5169069]
[1730672506255,0.0318,69213.0,69212.0,0.1561069]
[1730672506450,0.0318,69213.0,69212.0,0.5169069]
[1730672509860,0.0318,69213.0,69212.0,0.1561069]
[1730672510062,0.05971901,69213.0,69212.0,0.1561069]
[1730672513356,0.02891901,69213.0,69212.0,0.1561069]
[1730672514361,0.001,69213.0,69212.0,0.1561069]
[1730672521475,0.02891901,69213.0,69212.0,0.1561069]
[1730672529376,0.001,69213.0,69212.0,0.21390637]
[1730672536386,0.001,69213.0,69212.0,0.1561069]
[1730672536689,0.02891837,69213.0,69212.0,0.1561069]
[1730672537578,0.02891836,69213.0,69212.0,0.1561069]
[1730672541492,0.17602426,69213.0,69212.0,0.009]
[1730672541788,0.67166426,69213.0,69212.0,0.009]
[1730672541983,0.065047,69204.0,69203.0,0.3608]
[1730672542180,0.065052,69199.0,69198.0,0.065052]
[1730672542378,0.09297443,69199.0,69198.0,0.065052]
[1730672542587,0.065052,69199.0,69198.0,0.065052]
[1730672543488,0.065052,69199.0,69198.0,0.069052]
[1730672544089,0.065052,69199.0,69198.0,0.071052]
[1730672544688,0.065052,69199.0,69198.0,0.12885147]
[1730672544890,0.065052,69199.0,69198.0,0.071052]
[1730672559503,0.065052,69199.0,69198.0,0.12885147]
[1730672560394,0.065052,69199.0,69198.0,0.071052]
[1730672560708,0.065052,69199.0,69198.0,0.1287436]
[1730672561207,0.065052,69199.0,69198.0,0.4895436]
[1730672561407,0.065052,69199.0,69198.0,0.431852]
[1730672567002,0.035052,69199.0,69198.0,0.431852]
[1730672570395,0.035052,69199.0,69198.0,0.50410134]
[1730672570711,0.035052,69199.0,69198.0,0.431852]
[1730672571514,0.035052,69199.0,69198.0,0.53527162]
[1730672572406,0.035052,69199.0,69198.0,0.60755472]
[1730672572804,0.035052,69199.0,69198.0,0.24675472]
[1730672573008,0.035052,69199.0,69198.0,0.60755472]
[1730672574615,0.035052,69199.0,69198.0,0.431852]
[1730672574917,0.035052,69199.0,69198.0,0.071052]
[1730672575512,0.035052,69199.0,69198.0,0.431852]
[1730672579007,0.035052,69199.0,69198.0,0.071052]
[1730672580014,0.035052,69199.0,69198.0,0.431852]
[1730672580409,0.035052,69199.0,69198.0,0.071052]
[1730672581007,0.035052,69199.0,69198.0,0.431852]
[1730672581205,0.035052,69199.0,69198.0,0.071052]
[1730672581407,0.035052,69199.0,69198.0,0.431852]
[1730672581603,0.035052,69199.0,69198.0,0.5041351]
[1730672581803,0.035052,69199.0,69198.0,0.60757924]
[1730672582207,0.035052,69199.0,69198.0,0.24677924]
[1730672582403,0.035052,69199.0,69198.0,0.53529614]
[1730672582917,0.035052,69199.0,69198.0,0.6075788]
[1730672583218,0.035052,69199.0,69198.0,0.43908245]
[1730672583520,0.035052,69199.0,69198.0,0.54255057]
[1730672583907,0.035052,69199.0,69198.0,0.5425593]
[1730672589010,0.035052,69199.0,69198.0,0.1817593]
[1730672589212,0.035052,69199.0,69198.0,0.5425593]
[1730672590106,0.035052,69199.0,69198.0,0.1817593]
[1730672590526,0.035052,69199.0,69198.0,0.5425593]
[1730672591312,0.035052,69199.0,69198.0,0.1817593]
[1730672591513,0.035052,69199.0,69198.0,0.5425593]
[1730672593427,0.035052,69199.0,69198.0,0.54262256]
[1730672594022,0.035052,69199.0,69198.0,0.18182256]
[1730672594211,0.035052,69199.0,69198.0,0.54262256]
[1730672595627,0.035052,69199.0,69198.0,0.47034011]
[1730672595921,0.035052,69199.0,69198.0,0.54265779]
[1730672596127,0.035052,69199.0,69198.0,0.18185779]
[1730672596429,0.035052,69199.0,69198.0,0.54265779]
[1730672596617,0.035052,69199.0,69198.0,0.3668]
[1730672601216,0.035052,69199.0,69198.0,0.006]
[1730672607133,0.035052,69199.0,69198.0,0.3668]
[1730672610719,0.035052,69199.0,69198.0,0.006]
[1730672623036,0.035052,69199.0,69198.0,0.06383735]
[1730672624236,0.035052,69199.0,69198.0,0.0638277]
[1730672626832,0.035052,69199.0,69198.0,0.006]
[1730672633648,0.1171189,69199.0,69198.0,0.006]
[1730672639753,0.1171189,69199.0,69198.0,0.06382053]
[1730672641351,0.1171189,69199.0,69198.0,0.006]
[1730672641653,0.1171189,69199.0,69198.0,0.06382376]
[1730672641854,0.1171189,69199.0,69198.0,0.006]
[1730672642563,0.14504452,69199.0,69198.0,0.006]
[1730672649863,0.1171189,69199.0,69198.0,0.006]
[1730672660264,0.1171189,69199.0,69198.0,0.04938649]
[1730672660858,0.1171189,69199.0,69198.0,0.006]
[1730672661469,0.1171189,69199.0,69198.0,0.04938545]
[1730672662467,0.1171189,69199.0,69198.0,0.04938444]
[1730672663170,0.1171189,69199.0,69198.0,0.006]
[1730672665168,0.14504596,69199.0,69198.0,0.006]
[1730672665576,0.50584596,69199.0,69198.0,0.006]
[1730672667174,0.14504596,69199.0,69198.0,0.006]
[1730672667369,0.50584596,69199.0,69198.0,0.006]
[1730672668276,0.50584647,69199.0,69198.0,0.006]
[1730672671368,0.93936647,69199.0,69198.0,0.006]
[1730672672282,0.9114389,69199.0,69198.0,0.006]
[1730672675867,1.0079189,69199.0,69198.0,0.006]
[1730672680184,1.07125362,69199.0,69198.0,0.006]
[1730672682277,0.63773362,69199.0,69198.0,0.006]
[1730672682676,0.63773358,69199.0,69198.0,0.006]
[1730672682979,1.07125358,69199.0,69198.0,0.006]
[1730672683180,0.63773358,69199.0,69198.0,0.006]
[1730672686180,0.63773391,69199.0,69198.0,0.006]
[1730672687086,0.5743989,69199.0,69198.0,0.006]
[1730672695209,0.63773499,69199.0,69198.0,0.006]
[1730672697895,0.5743989,69199.0,69198.0,0.006]
[1730672698101,0.63773714,69199.0,69198.0,0.006]
[1730672700601,0.06506,69191.0,69190.0,0.0331]
[1730672700807,0.61792394,69191.0,69190.0,0.0331]
[1730672701105,0.61792558,69191.0,69190.0,0.0331]
[1730672701707,0.065071,69179.0,69178.0,0.00216804]
[1730672701914,0.2434979,69179.0,69178.0,0.00216804]
[1730672702112,0.2434979,69179.0,69178.0,0.0599918]
[1730672703715,0.2444979,69179.0,69178.0,0.0599918]
[1730672703915,0.2454979,69179.0,69178.0,0.0639918]
[1730672704217,0.2454979,69179.0,69178.0,0.00616804]
[1730672707110,0.2803855,69179.0,69178.0,0.00616804]
[1730672708622,0.3624524,69179.0,69178.0,0.00616804]
[1730672709816,0.3604524,69179.0,69178.0,0.00416804]
[1730672711722,0.3604524,69179.0,69178.0,0.002]
[1730672712028,0.3604524,69179.0,69176.0,0.0302]
[1730672712029,0.065073,69177.0,69176.0,0.0302]
[1730672713222,0.065073,69177.0,69176.0,0.0312]
[1730672722324,0.065091,69158.0,69156.0,0.425892]
[1730672722629,0.2434379,69158.0,69156.0,0.427932]
[1730672722828,0.2434379,69158.0,69156.0,0.425892]
[1730672723235,0.2434379,69158.0,69156.0,0.39661793]
[1730672723430,0.2434379,69158.0,69157.0,0.065092]
[1730672723632,0.2434379,69158.0,69157.0,0.160592]
[1730672724227,0.20825166,69158.0,69157.0,0.525392]
[1730672724535,0.20925166,69158.0,69157.0,0.525392]
[1730672728451,0.20925166,69158.0,69157.0,0.164592]
[1730672728633,0.20925166,69158.0,69157.0,0.525392]
[1730672729332,0.20925166,69158.0,69157.0,0.164592]
[1730672729735,0.20925166,69158.0,69157.0,0.525392]
[1730672730740,0.24527147,69158.0,69157.0,0.04730539]
[1730672731039,0.24527147,69158.0,69153.0,0.0577355]
[1730672731040,0.29843361,69158.0,69153.0,0.04330982]
[1730672731351,0.29843361,69158.0,69151.0,0.0324]
[1730672731352,0.065096,69152.0,69151.0,0.0324]
[1730672731525,0.065096,69152.0,69151.0,0.07570982]
[1730672731731,0.065096,69152.0,69151.0,0.0324]
[1730672732338,0.065096,69152.0,69151.0,0.07570982]
[1730672732532,0.065096,69152.0,69151.0,0.0324]
[1730672732929,0.066096,69152.0,69151.0,0.0354]
[1730672734136,0.067096,69152.0,69151.0,0.0354]
[1730672734646,0.066096,69152.0,69151.0,0.0354]
[1730672734945,0.067096,69152.0,69151.0,0.0324]
[1730672737045,0.065101,69147.0,69146.0,0.04330982]
[1730672737239,0.065101,69147.0,69145.0,0.04330982]
[1730672737240,0.065102,69146.0,69145.0,0.04330982]
[1730672737441,0.1471689,69146.0,69145.0,0.04330982]
[1730672738339,0.1481689,69146.0,69145.0,0.04330982]
[1730672739143,0.1491689,69146.0,69145.0,0.04330982]
[1730672739346,0.065107,69141.0,69140.0,0.04330982]
[1730672739539,0.0820669,69142.0,69137.0,0.4205355]
[1730672739734,0.0820669,69142.0,69141.0,0.04325153]
[1730672739735,0.065106,69142.0,69141.0,0.04325153]
[1730672740441,0.067102,69146.0,69139.0,0.04325153]
[1730672740645,0.065108,69140.0,69139.0,0.04325153]
[1730672740839,0.065108,69140.0,69138.0,0.04325153]
[1730672740840,0.0820669,69140.0,69138.0,0.04325153]
[1730672741046,0.065109,69139.0,69138.0,0.04325153]
[1730672741237,0.065109,69138.0,69137.0,0.3608]
[1730672742343,0.066109,69138.0,69137.0,0.3608]
[1730672742841,0.1481759,69138.0,69137.0,0.3608]
[1730672743643,0.1491759,69138.0,69137.0,0.3608]
[1730672744445,0.2454959,69138.0,69137.0,0.3608]
[1730672745036,0.163429,69138.0,69137.0,0.3608]
[1730672746151,0.2454959,69138.0,69137.0,0.3608]
[1730672748654,0.28027212,69138.0,69137.0,0.3608]
[1730672748841,0.28127212,69138.0,69137.0,0.3608]
[1730672749452,0.06511,69137.0,69136.0,0.0308]
[1730672751042,0.09632,69137.0,69136.0,0.0308]
[1730672751359,0.16243,69137.0,69136.0,0.0308]
[1730672751543,0.16343,69137.0,69136.0,0.0308]
[1730672752148,0.16335,69137.0,69136.0,0.0308]
[1730672753362,0.16335,69137.0,69136.0,0.10307566]
[1730672754241,0.16335,69137.0,69136.0,0.20897048]
[1730672754555,0.16335,69137.0,69136.0,0.0308]
[1730672754858,0.06711,69137.0,69136.0,0.0308]
[1730672755056,0.16335,69137.0,69136.0,0.0308]
[1730672756057,0.16335,69137.0,69136.0,0.08847366]
[1730672757146,0.16335,69137.0,69136.0,0.0308]
[1730672757349,0.16335,69137.0,69136.0,0.08852504]
[1730672758467,0.16335,69137.0,69136.0,0.0308]
[1730672765769,0.2454169,69137.0,69136.0,0.0308]
[1730672766964,0.2454169,69137.0,69136.0,0.13722213]
[1730672769374,0.2454169,69137.0,69136.0,0.0308]
[1730672771271,0.1491769,69137.0,69136.0,0.0308]
[1730672771472,0.2454169,69137.0,69136.0,0.0308]
[1730672774979,0.065113,69134.0,69133.0,0.07236179]
[1730672775180,0.065113,69134.0,69133.0,0.17856614]
[1730672775887,0.161353,69134.0,69133.0,0.17856614]
[1730672776289,0.161353,69134.0,69133.0,0.10620435]
[1730672776982,0.162353,69134.0,69133.0,0.10620831]
[1730672777485,0.12615225,69134.0,69133.0,0.23278246]
[1730672777786,0.12715225,69134.0,69133.0,0.23278246]
[1730672780791,0.067113,69134.0,69133.0,0.10620831]
[1730672780979,0.163353,69134.0,69133.0,0.10620831]
[1730672782086,0.163353,69134.0,69133.0,0.23250224]
[1730672782300,0.163353,69134.0,69133.0,0.10620831]
[1730672782990,0.163233,69134.0,69133.0,0.23250201]
[1730672783491,0.067113,69134.0,69133.0,0.10620831]
[1730672783688,0.067113,69134.0,69133.0,0.23250583]
[1730672783883,0.163233,69134.0,69133.0,0.23250583]
[1730672784286,0.163233,69134.0,69133.0,0.10620831]
[1730672784487,0.065115,69132.0,69131.0,0.07235909]
[1730672784692,0.065116,69131.0,69130.0,0.07235909]
[1730672784895,0.065116,69131.0,69130.0,0.17841387]
[1730672785100,0.065116,69131.0,69130.0,0.17842851]
[1730672785300,0.065116,69131.0,69130.0,0.17839533]
[1730672785595,0.065116,69131.0,69130.0,0.07235909]
[1730672786999,0.1471819,69132.0,69129.0,0.07235909]
[1730672787000,0.065117,69130.0,69129.0,0.07235909]
[1730672787201,0.065117,69130.0,69129.0,0.17843055]
[1730672788292,0.066117,69130.0,69129.0,0.17843055]
[1730672788488,0.067117,69130.0,69129.0,0.17843055]
[1730672789696,0.067117,69130.0,69129.0,0.07235487]
[1730672789897,0.066117,69130.0,69129.0,0.07235487]
[1730672790100,0.065118,69129.0,69128.0,0.43315487]
[1730672790297,0.065118,69129.0,69128.0,0.53921808]
[1730672791300,0.065118,69129.0,69128.0,0.53922455]
[1730672791801,0.066118,69129.0,69128.0,0.17842455]
[1730672792500,0.067118,69129.0,69128.0,0.46686968]
[1730672792894,0.067118,69129.0,69128.0,0.10606968]
[1730672793093,0.067118,69129.0,69128.0,0.46686968]
[1730672793605,0.067118,69129.0,69128.0,0.10606968]
[1730672793806,0.067118,69129.0,69128.0,0.19288642]
[1730672794308,0.163278,69129.0,69128.0,0.10606968]
[1730672796300,0.163278,69129.0,69128.0,0.19293196]
[1730672796605,0.163278,69129.0,69128.0,0.10612703]
[1730672799096,0.163278,69129.0,69128.0,0.19293196]
[1730672799304,0.163278,69129.0,69128.0,0.10612703]
[1730672801007,0.163278,69129.0,69128.0,0.19293196]
[1730672803808,0.163278,69129.0,69128.0,0.17124603]
[1730672810623,0.2453449,69129.0,69128.0,0.17118681]
[1730672812618,0.163158,69129.0,69128.0,0.17118681]
[1730672813615,0.2452249,69129.0,69128.0,0.17118681]
[1730672813924,0.1491849,69129.0,69128.0,0.17118681]
[1730672814222,0.2452249,69129.0,69128.0,0.17118681]
[1730672814730,0.2452249,69129.0,69128.0,0.36133621]
[1730672815828,0.1491849,69129.0,69128.0,0.36133621]
[1730672816026,0.2452249,69129.0,69128.0,0.36133621]
[1730672817415,0.1491849,69129.0,69128.0,0.36133621]
[1730672820618,0.1491849,69129.0,69128.0,0.72213621]
[1730672821816,0.1491849,69129.0,69128.0,0.75291354]
[1730672822522,0.1491849,69129.0,69128.0,0.62646414]
[1730672822523,0.11298252,69129.0,69128.0,0.62646414]
[1730672823519,0.11298252,69129.0,69128.0,0.71330979]
[1730672824626,0.11298252,69129.0,69128.0,0.71272175]
[1730672824828,0.11298252,69129.0,69128.0,0.60724198]
[1730672825922,0.11298252,69129.0,69128.0,0.7127227]
[1730672826620,0.11298252,69129.0,69128.0,0.60724198]
[1730672826821,0.11298252,69129.0,69128.0,0.24644198]
[1730672827021,0.11298252,69129.0,69128.0,0.60724198]
[1730672827924,0.0820669,69129.0,69128.0,0.60724198]
[1730672832738,0.0820669,69129.0,69128.0,0.52039633]
[1730672833328,0.0820669,69129.0,69128.0,0.57830994]
[1730672834431,0.0820669,69129.0,69128.0,0.52039633]
[1730672834737,0.0820669,69129.0,69128.0,0.57830994]
[1730672835436,0.09604,69131.0,69130.0,0.065117]
[1730672835632,0.1471799,69134.0,69133.0,0.065114]
[1730672835837,0.2432199,69134.0,69133.0,0.065114]
[1730672836135,0.1471759,69139.0,69138.0,0.065109]
[1730672836333,0.2432159,69139.0,69138.0,0.425909]
[1730672837033,0.2432159,69139.0,69138.0,0.53095084]
[1730672837336,0.2432159,69139.0,69138.0,0.60328729]
[1730672837533,0.2442159,69139.0,69138.0,0.60328729]
[1730672838431,0.2442159,69139.0,69138.0,0.49824545]
[1730672838630,0.1481759,69139.0,69138.0,0.49824545]
[1730672838830,0.2442159,69139.0,69138.0,0.49824545]
[1730672839427,0.2442159,69139.0,69138.0,0.425909]
[1730672840034,0.2442159,69139.0,69138.0,0.065109]
[1730672840229,0.2442159,69139.0,69138.0,0.425909]
[1730672840733,0.2442159,69139.0,69138.0,0.065109]
[1730672840929,0.2442159,69139.0,69138.0,0.425909]
[1730672841431,0.27468304,69139.0,69138.0,0.425909]
[1730672846028,0.27468304,69139.0,69138.0,0.065109]
[1730672846341,0.27468304,69139.0,69138.0,0.425909]
[1730672847332,0.27460304,69139.0,69138.0,0.425909]
[1730672851441,0.27456304,69139.0,69138.0,0.425909]
[1730672852140,0.27456304,69139.0,69138.0,0.4837356]
[1730672853436,0.27456304,69139.0,69138.0,0.1229356]
[1730672853947,0.27456304,69139.0,69138.0,0.4837356]
[1730672855438,0.27456304,69139.0,69138.0,0.48374381]
[1730672855439,0.2440959,69139.0,69138.0,0.48374381]
[1730672855949,0.2440959,69139.0,69138.0,0.425909]
[1730672856150,0.1481759,69139.0,69138.0,0.425909]
[1730672856539,0.2440959,69139.0,69138.0,0.425909]
[1730672858442,0.162029,69139.0,69138.0,0.425909]
[1730672861360,0.1925947,69139.0,69138.0,0.425909]
[1730672862055,0.0956747,69139.0,69138.0,0.425909]
[1730672862254,0.0325657,69139.0,69138.0,0.425909]
[1730672862454,0.002,69139.0,69138.0,0.859829]
[1730672865256,0.001,69139.0,69138.0,0.859829]
[1730672865760,0.065099,69149.0,69138.0,0.859829]
[1730672865961,0.03086781,69148.0,69141.0,0.0820669]
[1730672866261,0.03088711,69147.0,69146.0,0.065102]
[1730672867057,0.065099,69149.0,69143.0,0.05784117]
[1730672867267,0.065099,69149.0,69148.0,0.0651]
[1730672868555,0.072099,69149.0,69148.0,0.0651]
[1730672869258,0.078099,69149.0,69148.0,0.0651]
[1730672869854,0.076099,69149.0,69148.0,0.0651]
[1730672871965,0.074099,69149.0,69148.0,0.0651]
[1730672872564,0.069099,69149.0,69148.0,0.0651]
[1730672872749,0.074099,69149.0,69148.0,0.0651]
[1730672872957,0.074099,69149.0,69148.0,0.10849879]
[1730672873163,0.074099,69149.0,69148.0,0.0651]
[1730672873856,0.074099,69149.0,69148.0,0.10849879]
[1730672874364,0.074099,69149.0,69148.0,0.4259]
[1730672875559,0.1052288,69149.0,69148.0,0.4259]
[1730672876972,0.074099,69149.0,69148.0,0.4259]
[1730672887367,0.074099,69149.0,69148.0,0.46929879]
[1730672889664,0.074099,69149.0,69148.0,0.4259]
[1730672891671,0.074099,69149.0,69148.0,0.48374117]
[1730672896277,0.074099,69149.0,69148.0,0.4259]
[1730672900576,0.074099,69149.0,69148.0,0.0651]
[1730672900780,0.074099,69149.0,69148.0,0.4259]
[1730672903682,0.074099,69149.0,69148.0,0.0651]
[1730672903887,0.074099,69149.0,69148.0,0.4259]
[1730672912286,0.074099,69149.0,69148.0,0.0651]
[1730672912494,0.074099,69149.0,69148.0,0.4259]
[1730672919991,0.074099,69149.0,69148.0,0.0651]
[1730672920195,0.074099,69149.0,69148.0,0.4259]
[1730672927493,0.10550261,69149.0,69148.0,0.4259]
[1730672929898,0.10549957,69149.0,69148.0,0.4259]
[1730672930603,0.10149957,69149.0,69148.0,0.4259]
[1730672931506,0.09649957,69149.0,69148.0,0.4259]
[1730672932904,0.09649957,69149.0,69148.0,0.0651]
[1730672933204,0.09649957,69149.0,69148.0,0.4259]
[1730672933401,0.09649957,69149.0,69148.0,0.0651]
[1730672933703,0.09649957,69149.0,69148.0,0.4259]
[1730672935598,0.09649957,69149.0,69148.0,0.52417042]
[1730672935599,0.065099,69149.0,69148.0,0.52417042]
[1730672937006,0.065099,69149.0,69148.0,0.16337042]
[1730672937309,0.065099,69149.0,69148.0,0.52417042]
[1730672938606,0.065099,69149.0,69148.0,0.16337042]
[1730672938809,0.065099,69149.0,69148.0,0.52417042]
[1730672939509,0.065099,69149.0,69148.0,0.16337042]
[1730672939708,0.065099,69149.0,69148.0,0.52417042]
[1730672939909,0.065099,69149.0,69148.0,0.16337042]
[1730672940110,0.065099,69149.0,69148.0,0.52417042]
[1730672940609,0.076099,69149.0,69148.0,0.16337042]
[1730672941013,0.076099,69149.0,69148.0,0.52417042]
[1730672942802,0.076099,69149.0,69148.0,0.52415658]
[1730672943207,0.071099,69149.0,69148.0,0.52415658]
[1730672943406,0.076099,69149.0,69148.0,0.52415658]
[1730672944415,0.075099,69149.0,69148.0,0.52415658]
[1730672946004,0.074099,69149.0,69148.0,0.52415658]
[1730672946511,0.070099,69149.0,69148.0,0.52415658]
[1730672946709,0.074099,69149.0,69148.0,0.16335658]
[1730672946910,0.069099,69149.0,69148.0,0.52415658]
[1730672947109,0.074099,69149.0,69148.0,0.52415658]
[1730672948113,0.074099,69149.0,69148.0,0.16335658]
[1730672948314,0.074099,69149.0,69148.0,0.52415658]
[1730672949701,0.074099,69149.0,69148.0,0.16335658]
[1730672949906,0.074099,69149.0,69148.0,0.52415658]
[1730672950514,0.074099,69149.0,69148.0,0.46932804]
[1730672950902,0.074099,69149.0,69148.0,0.10852804]
[1730672951114,0.074099,69149.0,69148.0,0.46932804]
[1730672951315,0.074099,69149.0,69148.0,0.10852804]
[1730672951616,0.074099,69149.0,69148.0,0.46932804]
[1730672951813,0.074099,69149.0,69148.0,0.3608]
[1730672953020,0.065102,69146.0,69145.0,0.04342856]
[1730672953324,0.065112,69135.0,69134.0,0.00216939]
[1730672953510,0.160712,69135.0,69134.0,0.00216939]
[1730672955812,0.161712,69135.0,69134.0,0.00216939]
[1730672956325,0.162712,69135.0,69134.0,0.00216939]
[1730672958523,0.19413283,69135.0,69134.0,0.00216939]
[1730672961320,0.162712,69135.0,69134.0,0.00216939]
[1730672967616,0.065119,69128.0,69127.0,0.0321]
[1730672968818,0.067119,69128.0,69127.0,0.0321]
[1730672973323,0.09890224,69128.0,69127.0,0.0321]
[1730672978624,0.09890224,69128.0,69127.0,0.07539058]
[1730672979527,0.09890224,69128.0,69127.0,0.0321]
[1730672980536,0.09890224,69128.0,69127.0,0.07538642]
[1730672981633,0.09890224,69128.0,69127.0,0.0321]
[1730672982736,0.09890224,69128.0,69127.0,0.08982077]
[1730672986141,0.09890224,69128.0,69127.0,0.0321]
[1730672987036,0.09890224,69128.0,69127.0,0.08991712]
[1730672987631,0.09890224,69128.0,69127.0,0.0321]
[1730672993644,0.45970224,69128.0,69127.0,0.0321]
[1730672996643,0.45970224,69128.0,69127.0,0.10437141]
[1730672997251,0.45970224,69128.0,69127.0,0.0321]
[1730672997644,0.45970224,69128.0,69127.0,0.13138139]
[1730672998652,0.45970224,69128.0,69127.0,0.20368333]
[1730672998653,0.45870224,69128.0,69127.0,0.20368333]
[1730672999254,0.45770224,69128.0,69127.0,0.20368333]
[1730673000556,0.45770224,69128.0,69127.0,0.10448573]
[1730673000949,0.45770224,69128.0,69127.0,0.0321]
[1730673002756,0.45870224,69128.0,69127.0,0.0321]
[1730673005451,0.00217065,69142.0,69127.0,0.9255407]
[1730673005753,0.065109,69138.0,69137.0,0.06511]
[1730673005950,0.065109,69138.0,69137.0,0.12297934]
[1730673006151,0.065109,69138.0,69137.0,0.06511]
[1730673006346,0.065109,69138.0,69137.0,0.12294462]
[1730673006949,0.072109,69138.0,69137.0,0.12294462]
[1730673007151,0.072109,69138.0,69137.0,0.06511]
[1730673007353,0.065109,69138.0,69137.0,0.06511]
[1730673008054,0.1774669,69140.0,69136.0,0.05783462]
[1730673008262,0.0954,69140.0,69139.0,0.065109]
[1730673008651,0.0954,69140.0,69137.0,0.063]
[1730673008851,0.065109,69138.0,69137.0,0.063]
[1730673009052,0.0954,69140.0,69137.0,0.063]
[1730673009255,0.0954,69140.0,69139.0,0.065109]
[1730673009851,0.065106,69142.0,69138.0,0.04334279]
[1730673010058,0.0954,69141.0,69140.0,0.065107]
[1730673010652,0.009,69140.0,69139.0,0.001]
[1730673010961,0.1044,69140.0,69139.0,0.066109]
[1730673012254,0.0954,69140.0,69139.0,0.065109]
[1730673012957,0.1144,69140.0,69139.0,0.065109]
[1730673013166,0.019,69140.0,69139.0,0.065109]
[1730673013352,0.1054,69140.0,69139.0,0.065109]
[1730673013659,0.1074,69140.0,69139.0,0.065109]
[1730673014565,0.012,69140.0,69139.0,0.065109]
[1730673014756,0.1074,69140.0,69139.0,0.065109]
[1730673014949,0.1024,69140.0,69139.0,0.065109]
[1730673015149,0.1044,69140.0,69139.0,0.065109]
[1730673015354,0.1144,69140.0,69139.0,0.065109]
[1730673015764,0.1104,69140.0,69139.0,0.065109]
[1730673015965,0.005,69140.0,69139.0,0.065109]
[1730673016161,0.012,69140.0,69139.0,0.065109]
[1730673016860,0.015,69140.0,69139.0,0.065109]
[1730673017961,0.017,69140.0,69139.0,0.065109]
[1730673022061,0.017,69140.0,69139.0,0.061909]
[1730673024878,0.017,69140.0,69139.0,0.1439759]
[1730673025263,0.017,69140.0,69139.0,0.18731869]
[1730673025976,0.017,69140.0,69139.0,0.1439759]